bitfinex/quotes_SOLUSD_20260114
["timestamp","ask_amount","ask_price","bid_price","bid_amount"]
[1768404690198,0.70795842,146.62,146.58,9.32090163]
[1768404690586,0.70795842,146.62,146.58,6.82192936]
[1768404690788,0.70795842,146.62,146.58,9.32090163]
[1768404691090,0.70795842,146.62,146.57,6.82253284]
[1768404691296,0.70795842,146.61,146.58,9.32117255]
[1768404691883,0.70795842,146.63,146.58,23.87773309]
[1768404692179,0.70795842,146.63,146.61,2.49897227]
[1768404692358,0.70795842,146.63,146.58,23.87773309]
[1768404692359,0.70795842,146.63,146.59,2.49897227]
[1768404692566,0.70795842,146.63,146.58,6.82220028]
[1768404692767,0.70795842,146.63,146.59,2.49897227]
[1768404693280,0.70795842,146.63,146.59,9.32059514]
[1768404694377,0.70795842,146.65,146.61,2.49897227]
[1768404694774,0.70795842,146.65,146.6,2.49897227]
[1768404695374,0.70795842,146.65,146.61,6.82081713]
[1768404696186,0.70795842,146.65,146.6,6.82108064]
[1768404696383,0.70795842,146.65,146.6,9.32005291]
[1768404696567,136.97061194,146.76,146.62,2.49897227]
[1768404696568,0.70795842,146.67,146.62,2.49897227]
[1768404696759,0.70795842,146.66,146.62,2.49897227]
[1768404697379,3.20693069,146.66,146.61,2.49897227]
[1768404697781,0.70795842,146.65,146.6,38.79325891]
[1768404698067,0.70795842,146.65,146.6,26.37325891]
[1768404698884,2.49897227,146.64,146.6,23.87428664]
[1768404699095,0.70795842,146.65,146.6,26.37325891]
[1768404699298,0.70795842,146.65,146.6,23.87428664]
[1768404699470,3.20693069,146.65,146.6,6.82108064]
[1768404699786,0.70795842,146.64,146.6,6.82108064]
[1768404699986,0.70795842,146.62,146.59,6.82159581]
[1768404700580,0.70795842,146.62,146.58,19.24212876]
[1768404701693,0.70795842,146.62,146.59,6.82168663]
[1768404701868,3.20693069,146.64,146.59,6.82168663]
[1768404702196,0.70795842,146.63,146.59,6.82168663]
[1768404702592,0.70795842,146.64,146.59,26.37502822]
[1768404703070,2.49897227,146.65,146.59,26.37502822]
[1768404703397,3.20693069,146.65,146.59,26.37502822]
[1768404703582,0.70795842,146.65,146.6,2.49897227]
[1768404703784,0.70795842,146.66,146.6,2.49897227]
[1768404703978,0.70795842,146.64,146.59,26.37502822]
[1768404704178,0.70795842,146.64,146.59,9.3206589]
[1768404704786,0.70795842,146.64,146.59,26.37502822]
[1768404705180,0.70795842,146.64,146.59,23.87605595]
[1768404705385,0.70795842,146.64,146.59,26.37502822]
[1768404705899,0.70795842,146.64,146.59,23.87605595]
[1768404706094,0.70795842,146.64,146.59,38.79502822]
[1768404706694,0.70795842,146.64,146.59,19.24168663]
[1768404706895,0.70795842,146.63,146.59,19.24168663]
[1768404707973,0.70795842,146.63,146.59,21.7406589]
[1768404708605,6.81917114,146.65,146.59,21.7406589]
[1768404708606,0.70795842,146.64,146.59,19.24168663]
[1768404708809,0.70795842,146.64,146.55,0.1]
[1768404708975,3.20693069,146.58,146.55,0.1]
[1768404709178,0.70795842,146.57,146.55,0.1]
[1768404709377,0.70795842,146.59,146.55,0.1]
[1768404709582,0.70795842,146.58,146.55,0.1]
[1768404710286,0.70795842,146.6,146.55,6.92352316]
[1768404710599,3.20693069,146.61,146.55,6.92352316]
[1768404711206,17.0501455,146.63,146.55,6.92352316]
[1768404711207,0.67844156,146.63,146.57,2.49897227]
[1768404711497,0.67844156,146.61,146.56,14.91897227]
[1768404711704,0.67844156,146.61,146.56,12.42]
[1768404712277,0.67844156,146.61,146.56,14.91897227]
[1768404712278,0.64844157,146.61,146.56,14.91897227]
[1768404712498,2.49897227,146.63,146.57,6.85267857]
[1768404712682,2.49897227,146.64,146.58,2.52897226]
[1768404713087,9.31814507,146.65,146.59,2.49897227]
[1768404713300,2.49897227,146.64,146.58,0.02999999]
[1768404713689,2.49897227,146.64,146.58,2.52897226]
[1768404714208,2.49897227,146.64,146.59,6.82174773]
[1768404714384,0.67844156,146.63,146.59,6.82174773]
[1768404714884,9.99701258,146.64,146.59,6.82174773]
[1768404715183,3.17741383,146.63,146.59,6.82174773]
[1768404715384,0.67844156,146.63,146.59,6.82174773]
[1768404715704,3.17741383,146.63,146.59,6.82174773]
[1768404716200,0.67844156,146.62,146.58,6.82221312]
[1768404716405,2.49897227,146.63,146.55,0.1]
[1768404716406,0.67844156,146.58,146.55,0.1]
[1768404717506,0.67844156,146.57,146.55,0.1]
[1768404718101,3.17741383,146.59,146.55,0.1]
[1768404718281,0.67844156,146.58,146.55,0.1]
[1768404718487,0.67844156,146.59,146.55,6.92353818]
[1768404718695,0.67844156,146.59,146.55,0.1]
[1768404719007,21.59908297,146.65,146.56,0.02999999]
[1768404719008,3.17741383,146.61,146.56,0.02999999]
[1768404719197,0.67844156,146.61,146.56,0.02999999]
[1768404719396,9.99824378,146.61,146.55,26.48147952]
[1768404719602,9.99824378,146.61,146.56,0.02999999]
[1768404719603,0.67844156,146.61,146.56,0.02999999]
[1768404721410,0.67844156,146.61,146.56,2.52897226]
[1768404721809,17.04819984,146.65,146.55,23.98250725]
[1768404721810,0.67844156,146.65,146.59,2.52897226]
[1768404722106,0.67844156,146.64,146.59,0.02999999]
[1768404722292,102.9,146.76,146.6,9.35007431]
[1768404722293,0.67844156,146.65,146.6,9.35007431]
[1768404724913,0.67844156,146.65,146.61,6.37357872]
[1768404725121,7.49612565,146.68,146.63,6.37357872]
[1768404725414,13.86970437,146.68,146.62,13.22347528]
[1768404725712,0.67844156,146.62,146.57,6.85250694]
[1768404725894,7.05202028,146.62,146.57,0.02999999]
[1768404726212,0.67844156,146.64,146.59,6.37357872]
[1768404726391,7.05202028,146.64,146.59,0.02999999]
[1768404726712,0.67844156,146.63,146.58,13.22566015]
[1768404726914,0.67844156,146.61,146.57,12.42]
[1768404727507,0.67844156,146.61,146.56,13.19655345]
[1768404727688,0.67844156,146.61,146.57,6.8226429]
[1768404727886,0.67844156,146.61,146.56,6.37357872]
[1768404728089,0.67844156,146.61,146.57,6.82256446]
[1768404728510,0.67844156,146.61,146.57,13.19614318]
[1768404728812,0.67844156,146.6,146.55,12.52]
[1768404729119,0.67844156,146.6,146.55,6.47357872]
[1768404729417,0.67844156,146.6,146.56,13.19661015]
[1768404729595,0.67844156,146.6,146.56,6.82303143]
[1768404729784,0.67844156,146.62,146.57,6.37357872]
[1768404729991,0.67844156,146.62,146.58,6.37357872]
[1768404730206,0.67844156,146.62,146.59,6.37357872]
[1768404730889,0.67844156,146.62,146.58,18.79357872]
[1768404731496,0.67844156,146.62,146.58,19.24217062]
[1768404731715,0.67844156,146.62,146.59,6.37357872]
[1768404732412,0.67844156,146.62,146.58,12.42]
[1768404732797,0.67844156,146.62,146.58,18.79357872]
[1768404733506,0.67844156,146.62,146.59,6.37357872]
[1768404734025,0.67844156,146.64,146.6,6.37357872]
[1768404734193,0.67844156,146.64,146.61,6.37357872]
[1768404734394,0.67844156,146.64,146.59,6.40357871]
[1768404734594,0.67844156,146.64,146.6,6.37357872]
[1768404734906,0.67844156,146.66,146.63,6.37357872]
[1768404735512,0.67844156,146.68,146.64,6.37357872]
[1768404736020,0.67844156,146.67,146.63,13.19340769]
[1768404736193,0.67844156,146.67,146.64,6.37357872]
[1768404738117,0.67844156,146.67,146.63,6.37357872]
[1768404738704,0.67844156,146.66,146.62,6.37357872]
[1768404739314,0.67844156,146.66,146.63,6.37357872]
[1768404740910,0.71330185,146.65,146.63,6.37357872]
[1768404741205,0.71330185,146.67,146.64,6.37357872]
[1768404741406,0.71330185,146.67,146.64,10.35293365]
[1768404741805,0.71330185,146.67,146.63,10.35293365]
[1768404742317,0.71330185,146.66,146.63,10.35293365]
[1768404742999,0.71330185,146.66,146.63,6.81973198]
[1768404743309,0.71330185,146.68,146.63,17.17266563]
[1768404743512,0.71330185,146.68,146.64,10.35293365]
[1768404744032,0.71330185,146.68,146.65,10.35293365]
[1768404744322,0.71330185,146.68,146.64,10.35293365]
[1768404744618,0.71330185,146.68,146.64,17.17205465]
[1768404744919,0.71330185,146.68,146.65,10.35293365]
[1768404745225,0.71330185,146.68,146.66,10.35293365]
[1768404745427,0.71330185,146.68,146.65,3.90143934]
[1768404746419,0.71330185,146.68,146.66,3.90143934]
[1768404747228,0.71330185,146.72,146.67,3.90143934]
[1768404747432,0.71330185,146.72,146.68,3.90143934]
[1768404747623,0.71330185,146.72,146.67,3.90143934]
[1768404748126,0.71330185,146.71,146.67,3.90143934]
[1768404748425,0.71330185,146.7,146.65,3.90143934]
[1768404748724,0.71330185,146.69,146.65,3.90143934]
[1768404749227,0.71330185,146.69,146.64,6.81940653]
[1768404749429,0.71330185,146.69,146.65,3.90143934]
[1768404750020,0.71330185,146.7,146.66,3.90143934]
[1768404750329,0.71330185,146.7,146.66,10.71982672]
[1768404751815,0.71330185,146.7,146.66,6.81838738]
[1768404752016,0.71330185,146.7,146.66,10.71982672]
[1768404753731,0.71330185,146.72,146.68,3.90143934]
[1768404754224,0.71330185,146.72,146.66,36.31461674]
[1768404754437,0.71330185,146.72,146.68,3.90143934]
[1768404754611,0.71330185,146.72,146.66,19.23838738]
[1768404754813,0.71330185,146.72,146.67,3.90143934]
[1768404755317,0.71330185,146.71,146.67,3.90143934]
[1768404755732,0.71330185,146.73,146.69,3.90143934]
[1768404755914,0.71330185,146.73,146.7,3.90143934]
[1768404756114,0.71330185,146.73,146.66,6.81838738]
[1768404756428,0.71330185,146.69,146.65,6.81862574]
[1768404756631,0.71330185,146.69,146.64,10.72055706]
[1768404757114,0.71330185,146.69,146.64,10.7207328]
[1768404757538,0.71330185,146.68,146.64,10.7207328]
[1768404757740,0.71330185,146.68,146.64,6.81929346]
[1768404758037,0.71330185,146.68,146.63,6.81974928]
[1768404758238,0.71330185,146.68,146.61,12.44999999]
[1768404758239,0.71330185,146.66,146.61,3.90143934]
[1768404758608,0.71330185,146.66,146.61,6.82072232]
[1768404759058,0.71330185,146.66,146.61,10.72216166]
[1768404760020,0.71330185,146.66,146.62,3.90143934]
[1768404760222,0.71330185,146.67,146.61,23.90276514]
[1768404760422,0.71330185,146.67,146.62,3.93143933]
[1768404760830,0.71330185,146.67,146.61,23.87276515]
[1768404761136,0.71330185,146.65,146.61,10.72216166]
[1768404761530,0.71330185,146.65,146.61,3.90143934]
[1768404762617,0.71330185,146.64,146.6,10.72272174]
[1768404762927,0.71330185,146.64,146.6,6.8212824]
[1768404763419,0.71330185,146.64,146.6,10.72272174]
[1768404764028,0.71330185,146.64,146.6,6.8212824]
[1768404765831,4.61474119,146.64,146.6,6.8212824]
[1768404766144,0.71330185,146.64,146.6,6.8212824]
[1768404766836,4.61474119,146.64,146.6,6.8212824]
[1768404767038,0.71330185,146.64,146.6,10.72272174]
[1768404767342,0.71330185,146.64,146.6,6.8212824]
[1768404767515,4.61474119,146.64,146.6,6.8212824]
[1768404767723,0.71330185,146.64,146.6,6.8212824]
[1768404769331,0.71330185,146.66,146.61,3.93143933]
[1768404770144,0.71330185,146.66,146.61,0.02999999]
[1768404770450,0.71330185,146.66,146.62,16.35143933]
[1768404771421,4.62356585,146.68,146.63,6.81988678]
[1768404771855,0.72212651,146.67,146.63,6.81988678]
[1768404773243,0.72212651,146.67,146.63,23.86960375]
[1768404773552,4.62356585,146.69,146.63,27.80104308]
[1768404773752,0.72212651,146.67,146.63,23.86960375]
[1768404774051,0.72212651,146.67,146.63,27.77104309]
[1768404774439,0.72212651,146.67,146.63,23.86960375]
[1768404774648,0.72212651,146.67,146.63,6.81988678]
[1768404774829,0.72212651,146.66,146.63,6.81988678]
[1768404775350,0.72212651,146.65,146.62,19.24027815]
[1768404776849,0.72212651,146.65,146.6,6.82100479]
[1768404776850,0.72212651,146.63,146.6,6.82100479]
[1768404777052,0.72212651,146.62,146.59,6.8214649]
[1768404777652,0.72212651,146.61,146.58,6.82212507]
[1768404778023,0.72212651,146.61,146.59,6.82163581]
[1768404778227,0.72212651,146.61,146.6,6.8212824]
[1768404778451,0.72212651,146.64,146.61,6.82072962]
[1768404778953,0.72212651,146.64,146.6,23.8744884]
[1768404779153,0.72212651,146.66,146.6,23.90448839]
[1768404779455,0.72212651,146.65,146.6,40.22592773]
[1768404779662,0.72212651,146.67,146.61,3.93143933]
[1768404779825,0.72212651,146.67,146.62,0.02999999]
[1768404780030,0.72212651,146.67,146.63,16.32143934]
[1768404780230,3.90143934,146.7,146.64,4.56658031]
[1768404780448,3.90143934,146.69,146.63,12.42]
[1768404780653,3.90143934,146.68,146.63,12.42]
[1768404780855,3.90143934,146.68,146.63,6.81988678]
[1768404781149,3.90143934,146.68,146.63,19.90502775]
[1768404781342,3.90143934,146.69,146.63,40.85618406]
[1768404782340,0.72212651,146.68,146.63,40.85618406]
[1768404783646,4.62356585,146.68,146.63,40.85618406]
[1768404783844,0.72212651,146.67,146.63,36.95474472]
[1768404784079,0.72212651,146.67,146.63,19.23988678]
[1768404784267,0.72212651,146.67,146.63,6.81988678]
[1768404784843,0.72212651,146.66,146.63,6.81988678]
[1768404785653,0.72212651,146.64,146.6,6.82111051]
[1768404785847,0.72212651,146.63,146.57,12.42]
[1768404786046,0.72212651,146.62,146.59,6.8215382]
[1768404786261,0.72212651,146.62,146.59,6.82160181]
[1768404786863,0.72212651,146.62,146.57,34.04274715]
[1768404787051,6.81868503,146.66,146.59,0.66514097]
[1768404787358,3.90143934,146.66,146.61,0.66514097]
[1768404788044,3.90143934,146.66,146.61,4.56658031]
[1768404788850,3.90143934,146.66,146.62,6.82035193]
[1768404789053,4.62356585,146.66,146.62,6.82035193]
[1768404789351,0.72212651,146.65,146.62,6.82035193]
[1768404789851,0.72212651,146.65,146.61,7.4859581]
[1768404790052,4.62356585,146.67,146.62,0.66514097]
[1768404790259,4.62356585,146.68,146.62,4.56658031]
[1768404790465,0.72212651,146.68,146.64,0.66514097]
[1768404790635,3.90143934,146.72,146.63,3.90143934]
[1768404790636,7.53794628,146.72,146.67,0.66514097]
[1768404790841,0.72212651,146.72,146.68,3.90143934]
[1768404791240,0.72212651,146.72,146.67,0.66514097]
[1768404791241,0.72212651,146.72,146.67,4.56658031]
[1768404791863,0.72212651,146.72,146.67,11.38431205]
[1768404792069,3.90143934,146.79,146.69,0.66514097]
[1768404792248,3.90143934,146.79,146.67,23.86279889]
[1768404792249,12.6104005,146.78,146.72,0.66514097]
[1768404792444,3.90143934,146.77,146.72,0.66514097]
[1768404792760,7.5350438,146.78,146.72,0.66514097]
[1768404793070,3.90143934,146.78,146.73,0.66514097]
[1768404793444,10.34028524,146.78,146.73,0.66514097]
[1768404793864,0.72212651,146.79,146.74,7.4799154]
[1768404794052,10.34028524,146.78,146.74,7.4799154]
[1768404794247,0.2,146.8,146.75,0.66514097]
[1768404794447,0.2,146.8,146.76,0.66514097]
[1768404794671,0.2,146.83,146.79,0.66514097]
[1768404795058,0.72212651,146.82,146.75,0.66514097]
[1768404795247,10.34028524,146.79,146.75,0.66514097]
[1768404795766,10.34028524,146.8,146.75,0.66514097]
[1768404796069,10.34028524,146.81,146.77,0.66514097]
[1768404796848,0.72212651,146.82,146.77,0.66514097]
[1768404797050,10.54028524,146.83,146.78,0.66514097]
[1768404797271,0.2,146.83,146.78,0.66514097]
[1768404797452,10.54028524,146.83,146.78,0.66514097]
[1768404797766,10.54028524,146.83,146.77,10.34028524]
[1768404797767,0.2,146.83,146.8,0.66514097]
[1768404797969,0.2,146.83,146.8,7.476834]
[1768404798158,0.2,146.83,146.8,7.41689402]
[1768404798346,0.2,146.83,146.79,6.81241647]
[1768404799472,0.72212651,146.79,146.61,34.51717527]
[1768404799658,10.34028524,146.78,146.73,0.66514097]
[1768404799976,10.34028524,146.79,146.74,0.66903539]
[1768404800175,10.34028524,146.78,146.74,0.66903539]
[1768404800382,10.34028524,146.77,146.74,0.66903539]
[1768404800582,6.81247036,146.79,146.74,0.66903539]
[1768404800785,10.34028524,146.77,146.74,0.66903539]
[1768404801162,10.34028524,146.78,146.74,0.66903539]
[1768404801361,6.36396237,146.78,146.74,0.66903539]
[1768404801560,6.81247036,146.79,146.74,0.66903539]
[1768404801771,6.36396237,146.78,146.74,0.66903539]
[1768404802071,6.36396237,146.77,146.73,6.81510186]
[1768404802258,6.36396237,146.77,146.72,19.9302088]
[1768404802458,6.36396237,146.77,146.73,0.69462094]
[1768404803982,7.53581323,146.78,146.69,0.69462094]
[1768404803983,6.90135316,146.75,146.69,0.69462094]
[1768404804176,6.36396237,146.74,146.69,7.51159764]
[1768404804567,0.53739079,146.75,146.69,7.51159764]
[1768404804875,6.90135316,146.75,146.7,7.05858331]
[1768404805485,0.53739079,146.75,146.7,7.05858331]
[1768404805672,7.0884833,146.77,146.71,7.05858331]
[1768404805984,7.53708515,146.79,146.73,7.05858331]
[1768404806160,7.0884833,146.79,146.74,0.69462094]
[1768404806488,12.42,146.82,146.76,0.69462094]
[1768404806675,0.2,146.83,146.8,0.69462094]
[1768404807574,0.2,146.83,146.81,13.87010841]
[1768404808081,7.2884833,146.87,146.81,13.87010841]
[1768404808869,7.73334432,146.87,146.82,0.69462094]
[1768404809063,6.36396237,146.86,146.82,0.69462094]
[1768404809468,6.8976115,146.86,146.8,7.50650542]
[1768404809671,0.53364913,146.86,146.81,0.69462094]
[1768404809977,6.8976115,146.86,146.81,0.69462094]
[1768404810167,0.53364913,146.86,146.81,7.05858331]
[1768404810368,7.00885948,146.87,146.83,0.69462094]
[1768404810588,6.36396237,146.85,146.81,0.69462094]
[1768404810761,6.89950113,146.85,146.8,7.50641649]
[1768404810961,6.36396237,146.86,146.81,0.69462094]
[1768404811581,6.36396237,146.86,146.81,7.50608824]
[1768404811779,14.09734278,146.87,146.81,13.87005061]
[1768404812075,0.92452093,146.87,146.82,0.69462094]
[1768404812387,0.2,146.87,146.82,0.69462094]
[1768404813083,0.2,146.87,146.81,23.84028005]
[1768404813084,7.53098257,146.92,146.84,0.69462094]
[1768404813269,13.88634345,146.92,146.84,0.69462094]
[1768404813586,6.35536088,146.93,146.86,0.69462094]
[1768404813765,6.35536088,146.94,146.88,0.69462094]
[1768404814107,7.52923831,146.96,146.88,0.69462094]
[1768404814280,0.53553876,146.93,146.88,0.69462094]
[1768404814458,0.71890797,146.9,146.86,12.42]
[1768404814761,0.71890797,146.9,146.85,0.69462094]
[1768404815172,0.53364913,146.93,146.86,0.69462094]
[1768404815494,0.72452093,146.95,146.88,0.69462094]
[1768404815665,0.72452093,146.95,146.9,0.69462094]
[1768404815985,6.80471738,146.96,146.9,0.69462094]
[1768404816183,7.33836651,146.96,146.9,0.69462094]
[1768404816574,0.53364913,146.96,146.9,0.69462094]
[1768404817088,6.90442017,146.97,146.9,0.69462094]
[1768404817300,7.4380693,146.97,146.9,0.69462094]
[1768404817789,7.4380693,146.97,146.91,0.69462094]
[1768404818176,13.79343018,146.97,146.91,0.69462094]
[1768404818994,0.72074148,146.94,146.89,0.69462094]
[1768404819889,7.52658944,146.94,146.89,0.69462094]
[1768404820188,7.52658944,146.94,146.87,19.92299236]
[1768404820394,0.53739079,146.93,146.88,0.69462094]
[1768404820896,0.53739079,146.93,146.85,67.64597375]
[1768404821966,0.53739079,146.93,146.86,23.83136387]
[1768404822393,0.53739079,146.93,146.86,36.25136387]
[1768404822700,0.72452093,146.95,146.86,36.25136387]
[1768404822880,0.72452093,146.95,146.87,0.69462094]
[1768404824100,0.72452093,146.95,146.89,0.69462094]
[1768404824704,0.1,146.97,146.89,0.69462094]
[1768404824891,0.1,146.97,146.91,0.69462094]
[1768404825071,0.72452093,146.96,146.91,0.69462094]
[1768404825398,0.72452093,146.96,146.89,0.69462094]
[1768404826271,7.52925007,146.96,146.9,7.50197288]
[1768404826470,0.72452093,146.95,146.9,7.50197288]
[1768404828799,0.72452093,146.95,146.9,6.80735194]
[1768404829411,0.72452093,146.95,146.9,7.50197288]
[1768404829907,0.72452093,146.95,146.9,0.69462094]
[1768404831695,0.71269801,146.96,146.89,23.8273538]
[1768404831897,0.71269801,146.94,146.89,7.48456234]
[1768404833096,0.71269801,146.94,146.89,24.50410077]
[1768404834000,0.71269801,146.96,146.9,0.67674697]
[1768404834894,0.71269801,146.96,146.88,0.67674697]
[1768404836004,0.71269801,146.95,146.89,7.48456234]
[1768404837486,0.71269801,146.95,146.89,24.50410077]
[1768404838092,0.71269801,146.94,146.89,7.48456234]
[1768404839109,0.71269801,146.94,146.9,0.67674697]
[1768404839604,0.71269801,146.96,146.91,7.48363554]
[1768404840121,0.71269801,146.96,146.9,6.80716214]
[1768404840826,0.71269801,146.96,146.89,7.48440613]
[1768404841018,0.71269801,146.95,146.89,6.80765916]
[1768404841642,0.71269801,146.95,146.9,6.807249]
[1768404841934,26.40279043,146.97,146.89,7.48456234]
[1768404841935,0.71269801,146.94,146.89,7.48456234]
[1768404842315,0.71269801,146.96,146.9,0.67674697]
[1768404843546,0.71269801,146.96,146.91,6.80688857]
[1768404843713,0.71269801,146.96,146.91,7.48363554]
[1768404845643,0.71269801,146.95,146.91,6.80688857]
[1768404845828,0.71269801,146.95,146.9,6.80716588]
[1768404846145,0.71269801,146.95,146.91,6.80684764]
[1768404847526,0.71269801,146.95,146.9,0.67674697]
[1768404848117,0.81269801,146.97,146.9,0.67674697]
[1768404849041,0.81269801,146.97,146.94,2.48760903]
[1768404849438,0.71269801,146.96,146.94,2.48760903]
[1768404849639,0.71269801,146.96,146.93,2.48760903]
[1768404849834,7.51737456,146.96,146.92,2.48760903]
[1768404850033,0.71269801,146.95,146.92,2.48760903]
[1768404850346,0.71269801,146.95,146.92,9.29389276]
[1768404851038,0.71269801,146.95,146.91,6.80651775]
[1768404851235,0.71269801,146.95,146.92,2.48760903]
[1768404851544,0.71269801,146.94,146.9,6.80726429]
[1768404851723,0.71269801,146.94,146.91,9.29423121]
[1768404851920,0.71269801,146.94,146.92,2.48760903]
[1768404852126,0.71269801,146.96,146.92,9.29402407]
[1768404853241,0.71269801,146.96,146.94,2.48760903]
[1768404853445,0.1,146.97,146.95,2.48760903]
[1768404853641,0.71269801,146.98,146.96,2.48760903]
[1768404854165,0.71269801,147.0,146.97,2.48760903]
[1768404854530,0.71269801,147.0,146.96,2.48760903]
[1768404854943,0.71269801,146.99,146.97,2.48760903]
[1768404855128,0.71269801,146.99,146.95,7.48159907]
[1768404855322,0.68269802,146.99,146.95,7.48159907]
[1768404855726,0.68269802,146.99,146.96,2.48760903]
[1768404856141,0.68269802,146.99,146.97,2.48760903]
[1768404856342,0.68269802,146.99,146.96,2.48760903]
[1768404856529,6.8033224,146.99,146.93,6.8058303]
[1768404856738,6.80287844,147.0,146.95,2.48760903]
[1768404856946,6.80287844,147.0,146.96,2.48760903]
[1768404857145,6.80287844,147.0,146.95,7.48164096]
[1768404857354,5.7948239,146.99,146.96,2.48760903]
[1768404857528,0.71269801,146.99,146.96,2.48760903]
[1768404857731,0.71269801,146.99,146.95,9.29250302]
[1768404857927,0.71269801,146.98,146.95,2.48760903]
[1768404858155,0.71269801,146.98,146.94,2.48760903]
[1768404858526,0.71269801,146.98,146.94,9.29293617]
[1768404858948,0.71269801,146.98,146.95,2.48760903]
[1768404859951,0.71269801,146.99,146.95,2.48760903]
[1768404860530,0.71269801,146.99,146.96,2.48760903]
[1768404860950,0.71269801,146.99,146.92,0.69414011]
[1768404861128,0.66002806,146.97,146.92,0.69414011]
[1768404861329,0.66002806,146.97,146.93,2.48760903]
[1768404861536,0.66002806,146.97,146.94,2.48760903]
[1768404862645,6.80336523,146.99,146.94,9.29308284]
[1768404862950,0.66002806,146.98,146.95,2.48760903]
[1768404863154,0.66002806,146.98,146.94,2.48760903]
[1768404863326,0.66002806,146.98,146.95,3.88622641]
[1768404863840,0.1,147.02,146.95,0.69414011]
[1768404863841,19.86290897,147.0,146.95,0.69414011]
[1768404864049,0.66002806,146.99,146.96,3.88622641]
[1768404864638,7.46335113,146.99,146.95,3.88622641]
[1768404864846,7.46335113,146.99,146.93,0.69414011]
[1768404864847,0.66002806,146.98,146.93,7.49997562]
[1768404865157,13.03002807,146.98,146.95,3.88622641]
[1768404865534,13.03002807,146.98,146.96,3.88622641]
[1768404866256,6.80287537,147.0,146.97,3.88622641]
[1768404866459,6.80287537,147.0,146.96,3.88622641]
[1768404867159,0.66002806,147.0,146.97,3.88622641]
[1768404868433,0.50802182,146.99,146.93,0.69414011]
[1768404868646,0.658508,146.98,146.93,4.58036652]
[1768404868843,0.658508,146.98,146.93,11.38629577]
[1768404869250,0.658508,146.98,146.94,0.69414011]
[1768404869453,28.35595046,147.0,146.94,4.58036652]
[1768404869656,5.59022379,146.99,146.94,4.58036652]
[1768404869838,0.50802182,146.99,146.94,4.58036652]
[1768404870653,7.31141647,146.99,146.94,4.58036652]
[1768404871154,0.658508,146.98,146.93,3.88622641]
[1768404871958,0.658508,146.98,146.91,0.69414011]
[1768404871959,0.50952668,146.97,146.91,0.69414011]
[1768404872148,0.50952668,146.97,146.92,3.88622641]
[1768404872857,0.65701819,146.96,146.92,3.88622641]
[1768404873957,6.80454305,146.97,146.93,4.58036652]
[1768404875062,7.31256487,146.97,146.93,4.58036652]
[1768404875862,6.80383495,146.98,146.94,4.58036652]
[1768404876040,5.08329713,146.97,146.94,4.58036652]
[1768404876236,6.80383495,146.98,146.94,4.58036652]
[1768404876431,5.08342465,146.97,146.94,4.58036652]
[1768404876754,7.4634156,146.99,146.95,4.58036652]
[1768404876938,5.08317194,146.98,146.93,7.5000162]
[1768404877139,7.4634156,146.99,146.95,3.88622641]
[1768404877362,0.50802182,146.98,146.95,3.88622641]
[1768404877549,7.46295362,147.0,146.95,4.58036652]
[1768404877742,5.08318416,146.99,146.96,3.88622641]
[1768404877944,0.50802182,146.99,146.93,7.49989355]
[1768404878147,0.50802182,146.99,146.95,0.69414011]
[1768404878350,0.50802182,146.99,146.95,4.58036652]
[1768404878743,6.80292556,147.0,146.98,3.88622641]
[1768404878942,7.46245667,147.01,146.97,0.69414011]
[1768404879172,5.59077312,147.0,146.96,4.58036652]
[1768404879368,5.59077312,147.0,146.93,6.80576235]
[1768404879369,0.50802182,147.0,146.95,3.88622641]
[1768404879749,0.50802182,147.0,146.94,4.58036652]
[1768404880066,0.50952668,146.98,146.94,4.58036652]
[1768404880253,0.50952668,146.98,146.92,0.69414011]
[1768404880457,0.65701819,146.96,146.93,3.88622641]
[1768404880660,0.65701819,146.96,146.9,0.69414011]
[1768404880963,0.51100159,146.94,146.89,0.69414011]
[1768404881170,0.51100159,146.94,146.91,3.88622641]
[1768404881362,0.66002806,146.98,146.94,0.69414011]
[1768404881559,5.08348749,146.97,146.94,4.58036652]
[1768404881750,0.66002806,146.98,146.94,4.58036652]
[1768404881949,5.08321999,146.97,146.94,4.58036652]
[1768404882163,0.66002806,146.98,146.95,3.88622641]
[1768404882351,7.46291023,147.0,146.96,0.69414011]
[1768404882555,7.46291023,147.0,146.94,0.69414011]
[1768404882765,7.46291023,147.0,146.95,4.58036652]
[1768404883171,5.08279444,146.99,146.95,4.58036652]
[1768404883355,7.46291023,147.0,146.96,3.88622641]
[1768404883662,7.46291023,147.0,146.95,4.58036652]
[1768404884074,7.46291023,147.0,146.96,3.88622641]
[1768404884249,0.50802182,146.99,146.96,3.88622641]
[1768404884445,0.50802182,146.99,146.94,0.69414011]
[1768404884670,0.50802182,146.99,146.95,3.88622641]
[1768404885057,0.50802182,146.99,146.95,4.58036652]
[1768404885262,6.80364675,146.98,146.95,4.58036652]
[1768404885569,6.80364675,146.98,146.94,3.88622641]
[1768404885772,7.31138835,146.99,146.94,4.58036652]
[1768404886154,7.31138835,146.99,146.95,0.69414011]
[1768404886683,6.80336653,146.99,146.96,0.69414011]
[1768404886966,7.3107429,147.0,146.96,0.69414011]
[1768404887170,7.3107429,147.0,146.95,3.88622641]